bitfinex/quotes_SOLUSD_20250607
["timestamp","ask_amount","ask_price","bid_price","bid_amount"]
[1749296041668,10.66278135,152.1,152.05,10.66278135]
[1749296042551,10.66278135,152.1,152.06,6.57635144]
[1749296043659,10.66278135,152.09,152.06,6.57635144]
[1749296047268,10.66278135,152.1,152.06,6.57635144]
[1749296050370,10.66278135,152.09,152.06,6.57635144]
[1749296051883,10.66278135,152.09,152.05,6.57670576]
[1749296052068,6.57472532,152.1,152.05,6.57670576]
[1749296052069,10.66278135,152.08,152.05,6.57670576]
[1749296052955,10.66278135,152.08,152.04,10.66278135]
[1749296053359,10.66278135,152.09,152.04,10.66278135]
[1749296053559,10.66278135,152.1,152.05,10.66278135]
[1749296054387,10.66278135,152.1,152.05,17.23915507]
[1749296056778,10.66278135,152.1,152.05,16.73915507]
[1749296057678,10.66278135,152.09,152.05,16.73915507]
[1749296057879,10.66278135,152.09,152.05,6.57637372]
[1749296058180,10.66278135,152.1,152.05,17.23915507]
[1749296058371,10.66278135,152.09,152.05,17.23915507]
[1749296058573,12.20708135,152.11,152.07,10.66278135]
[1749296059387,12.20708135,152.11,152.06,10.66278135]
[1749296060569,12.20708135,152.11,152.06,17.23873907]
[1749296061488,10.66278135,152.1,152.06,17.23873907]
[1749296062584,10.66278135,152.1,152.06,6.57595772]
[1749296062773,10.66278135,152.1,152.06,6.07595772]
[1749296063985,10.66278135,152.12,152.07,10.66278135]
[1749296064177,10.66278135,152.12,152.08,10.66278135]
[1749296065198,10.66278135,152.13,152.09,6.57505424]
[1749296065370,10.66278135,152.13,152.09,17.23783559]
[1749296065568,10.28,152.14,152.09,17.23783559]
[1749296065569,10.66278135,152.14,152.1,10.66278135]
[1749296066377,1.5856,152.15,152.1,10.66278135]
[1749296066597,10.66278135,152.14,152.1,10.66278135]
[1749296067304,10.66278135,152.11,152.07,20.94278135]
[1749296067480,10.66278135,152.11,152.07,10.28]
[1749296067795,10.66278135,152.11,152.07,16.85576663]
[1749296068519,10.66278135,152.11,152.07,10.28]
[1749296068674,10.66278135,152.1,152.07,10.28]
[1749296068873,10.66278135,152.1,152.06,83.23906503]
[1749296069183,17.23745183,152.1,152.06,76.66278135]
[1749296069382,17.23745183,152.1,152.06,66.0]
[1749296069974,17.23745183,152.1,152.06,26.0]
[1749296070169,17.23745183,152.1,152.05,10.66278135]
[1749296070170,10.66278135,152.09,152.05,10.66278135]
[1749296070496,10.66278135,152.09,152.04,17.23969391]
[1749296071701,10.66278135,152.08,152.04,6.57691256]
[1749296072487,10.66278135,152.08,152.03,53.52026199]
[1749296073395,6.57511659,152.09,152.03,53.52026199]
[1749296073707,10.66278135,152.06,152.03,36.28]
[1749296074005,10.66278135,152.07,152.03,16.85761415]
[1749296074402,10.66278135,152.09,152.04,10.66278135]
[1749296074906,10.66278135,152.1,152.05,10.66278135]
[1749296075102,10.66278135,152.1,152.06,10.66278135]
[1749296075509,10.66278135,152.1,152.07,6.57591898]
[1749296075711,12.78296263,152.12,152.07,6.57591898]
[1749296076012,10.66278135,152.1,152.07,6.57591898]
[1749296078795,10.66278135,152.09,152.05,6.57639634]
[1749296080808,10.66278135,152.08,152.05,6.57639634]
[1749296083013,6.57418973,152.11,152.05,6.57639634]
[1749296083230,10.66278135,152.09,152.05,17.23917769]
[1749296084801,6.57418973,152.11,152.05,17.23917769]
[1749296085004,10.66278135,152.1,152.05,17.23917769]
[1749296085407,10.66278135,152.09,152.05,17.23917769]
[1749296086097,10.66278135,152.09,152.05,6.57639634]
[1749296089200,10.66278135,152.09,152.05,17.23917769]
[1749296089601,10.66278135,152.1,152.05,17.23917769]
[1749296091227,10.66278135,152.11,152.07,10.66278135]
[1749296092603,10.66278135,152.11,152.07,17.23838188]
[1749296092800,10.66278135,152.12,152.08,10.66278135]
[1749296094616,18.41731209,152.14,152.06,6.71851301]
[1749296094812,10.66278135,152.12,152.07,10.66278135]
[1749296095041,10.66278135,152.11,152.07,10.66278135]
[1749296095542,10.66278135,152.11,152.08,6.57548658]
[1749296099144,10.66278135,152.12,152.08,6.57548658]
[1749296100750,18.4173778,152.14,152.08,6.57548658]
[1749296100926,10.66278135,152.12,152.08,6.57548658]
[1749296101240,10.66278135,152.12,152.08,17.23826793]
[1749296101445,10.66278135,152.12,152.08,6.57548658]
[1749296101645,10.66278135,152.11,152.08,6.57548658]
[1749296102341,10.66278135,152.12,152.08,6.57548658]
[1749296103845,10.66278135,152.11,152.08,6.57548658]
[1749296104943,10.66278135,152.12,152.08,17.23826793]
[1749296105236,10.66278135,152.14,152.09,10.66278135]
[1749296105933,10.66278135,152.13,152.09,10.66278135]
[1749296106309,10.66278135,152.1,152.05,16.5236]
[1749296106510,10.66278135,152.09,152.05,16.85660622]
[1749296106714,10.66278135,152.09,152.05,27.51938757]
[1749296107944,6.57464706,152.1,152.05,27.51938757]
[1749296108127,10.66278135,152.09,152.05,27.51938757]
[1749296109036,10.66278135,152.1,152.05,27.51938757]
[1749296109934,10.66278135,152.1,152.06,10.66278135]
[1749296110319,10.66278135,152.1,152.05,27.51938757]
[1749296111448,10.66278135,152.09,152.05,16.85660622]
[1749296111654,10.66278135,152.09,152.05,27.51938757]
[1749296113451,10.66278135,152.1,152.05,27.51938757]
[1749296113836,10.66278135,152.09,152.05,27.51938757]
[1749296115158,6.57375755,152.12,152.05,27.51938757]
[1749296115373,10.66278135,152.1,152.05,27.51938757]
[1749296116922,10.66278135,152.09,152.05,27.51938757]
[1749296120346,1.6043,152.13,152.08,10.66278135]
[1749296120661,12.26708135,152.13,152.06,0.28432314]
[1749296120958,12.26708135,152.13,152.05,33.58288924]
[1749296120959,10.66278135,152.12,152.08,10.66278135]
[1749296121936,10.66278135,152.12,152.08,17.2382555]
[1749296122134,10.66278135,152.12,152.08,6.57547415]
[1749296122327,10.66278135,152.12,152.08,17.2382555]
[1749296125172,10.66278135,152.11,152.08,6.57547415]
[1749296127532,10.66278135,152.11,152.07,17.23857368]
[1749296127845,10.66278135,152.11,152.0,10.66278135]
[1749296127846,1.5526,152.08,152.0,10.66278135]
[1749296128042,1.5526,152.08,152.01,10.66278135]
[1749296128043,10.66278135,152.06,152.01,10.66278135]
[1749296128239,1.5526,152.08,152.01,10.66278135]
[1749296128432,10.66278135,152.06,152.02,26.0]
[1749296129072,10.66278135,152.05,152.01,26.0]
[1749296129235,10.66278135,152.04,152.01,26.0]
[1749296129557,17.2402251,152.04,151.99,10.66278135]
[1749296131257,17.2402251,152.04,151.99,17.24200735]
[1749296131628,10.66278135,152.04,151.99,17.24200735]
[1749296133936,10.66278135,152.04,152.0,10.66278135]
[1749296135481,6.57591898,152.07,152.0,17.24167434]
[1749296135672,10.66278135,152.04,152.0,17.24167434]
[1749296139681,10.66278135,152.05,152.01,10.66278135]
[1749296141077,10.66278135,152.05,152.01,17.24113099]
[1749296141281,10.66278135,152.04,152.01,6.57834964]
[1749296143377,10.66278135,152.04,152.0,10.66278135]
[1749296144781,10.66278135,152.04,152.01,6.57851457]
[1749296146192,10.66278135,152.03,151.98,66.36]
[1749296146398,10.66278135,152.02,151.98,77.02278135]
[1749296146766,10.66278135,152.02,151.98,83.60227291]
[1749296147373,10.66278135,152.03,151.98,83.60227291]
[1749296149175,10.66278135,152.04,151.99,10.66278135]
[1749296149768,10.66278135,152.04,152.0,10.66278135]
[1749296150278,10.66278135,152.04,151.98,89.38902439]
[1749296150279,10.66278135,152.06,152.01,10.66278135]
[1749296150698,10.66278135,152.05,152.02,6.57808183]
[1749296152091,10.66278135,152.06,152.02,6.57808183]
[1749296153785,10.66278135,152.05,152.02,6.57808183]
[1749296157184,6.82761853,152.04,152.02,6.57808183]
[1749296158292,6.82761853,152.04,152.0,6.82761853]
[1749296158293,6.82761853,152.04,152.01,6.57851457]
[1749296158924,6.57601128,152.07,152.01,6.57851457]
[1749296159091,6.82761853,152.04,152.01,6.57851457]
[1749296159292,6.57601128,152.07,152.01,6.57851457]
[1749296159498,6.82761853,152.05,152.01,6.57851457]
[1749296161899,6.82761853,152.06,152.01,13.4061331]
[1749296162380,6.82761853,152.07,152.02,6.82761853]
[1749296162579,6.82761853,152.07,152.03,6.82761853]
[1749296162791,6.82761853,152.07,152.02,6.82761853]
[1749296163793,6.82761853,152.07,152.03,6.57764914]
[1749296165618,6.82761853,152.07,152.01,16.44628642]
[1749296165802,6.82761853,152.07,152.02,6.82761853]
[1749296167016,6.82761853,152.07,152.03,6.82761853]
[1749296167400,8.38021853,152.08,152.04,6.57721652]
[1749296175210,8.38021853,152.08,152.04,13.40483505]
[1749296177626,6.82761853,152.06,152.02,17.22761853]
[1749296178510,6.82761853,152.06,152.02,10.4]
[1749296178709,6.82761853,152.06,152.02,16.97794723]
[1749296181326,6.82761853,152.03,151.98,12.69438105]
[1749296181536,6.82761853,152.0,151.96,10.4]
[1749296181908,6.82761853,152.0,151.96,17.22761853]
[1749296182508,6.82761853,152.0,151.97,6.58018304]
[1749296184737,10.67436324,152.0,151.96,27.6548846]
[1749296184913,10.67436324,152.0,151.96,16.98052136]
[1749296185325,10.67436324,152.0,151.96,27.6548846]
[1749296187319,10.67436324,152.01,151.97,10.67436324]
[1749296188333,10.67436324,152.01,151.98,6.57981313]
[1749296192039,10.67436324,152.01,151.97,6.5802461]
[1749296195539,10.67436324,152.02,151.97,33.70522459]
[1749296195745,10.67436324,152.02,151.98,10.67436324]
[1749296196047,1.6664,152.04,151.98,10.67436324]
[1749296196048,10.67436324,152.03,151.98,10.67436324]
[1749296197037,10.67436324,152.03,151.99,6.57938022]
[1749296197425,1.6664,152.04,151.99,17.25374346]
[1749296197628,7.9035794,152.07,152.0,10.67436324]
[1749296197827,10.67436324,152.05,152.0,10.67436324]
[1749296198040,10.67436324,152.05,151.99,23.02783077]
[1749296198041,10.67436324,152.05,152.01,10.67436324]
[1749296198341,10.67436324,152.06,152.01,10.67436324]
[1749296199246,10.67436324,152.05,152.02,6.57808183]
[1749296200845,10.67436324,152.06,152.02,6.57808183]
[1749296201146,10.67436324,152.06,152.02,17.25244507]
[1749296203020,10.67436324,152.07,152.02,17.25244507]
[1749296203220,6.82570628,152.07,152.02,13.40378811]
[1749296204952,7.9636,152.08,152.02,13.40378811]
[1749296205142,6.82570628,152.07,152.02,13.40378811]
[1749296205339,6.82570628,152.07,152.03,6.82570628]
[1749296205849,1.596,152.08,152.05,6.82570628]
[1749296206041,6.82570628,152.1,152.05,6.82570628]
[1749296206351,6.82570628,152.09,152.04,6.82570628]
[1749296206952,6.82570628,152.1,152.06,6.82570628]
[1749296207246,10.65984844,152.11,152.07,10.65984844]
[1749296208248,12.18554844,152.12,152.07,10.65984844]
[1749296208559,12.18554844,152.12,152.08,10.65984844]
[1749296209948,12.18554844,152.12,152.09,6.57505424]
[1749296210356,10.65984844,152.11,152.08,6.57537626]
[1749296211148,12.18554844,152.12,152.08,6.57537626]
[1749296215360,10.65984844,152.12,152.08,17.2352247]
[1749296215536,10.65984844,152.13,152.09,10.65984844]
[1749296216041,10.65984844,152.11,152.07,6.57573985]
[1749296216547,10.65984844,152.11,152.07,17.23558829]
[1749296217867,10.65984844,152.11,152.07,6.57573985]
[1749296218162,17.23426277,152.11,152.06,20.99984844]
[1749296218366,17.23426277,152.11,152.06,27.57612524]
[1749296218568,10.65984844,152.1,152.06,27.57612524]
[1749296220860,10.65984844,152.1,152.06,20.99984844]
[1749296221043,6.57406833,152.12,152.06,20.99984844]
[1749296221044,10.65984844,152.08,152.06,10.34]
[1749296221250,10.65984844,152.08,152.04,36.65984844]
[1749296221964,10.65984844,152.08,152.04,32.57708932]
[1749296222139,10.65984844,152.07,152.04,32.57708932]
[1749296223369,10.65984844,152.09,152.05,10.65984844]
[1749296224262,10.65984844,152.1,152.05,10.65984844]
[1749296225381,12.20754844,152.11,152.07,6.57591898]
[1749296226967,10.65984844,152.1,152.07,6.57591898]
[1749296228466,10.65984844,152.1,152.06,6.57635144]
[1749296228667,10.65984844,152.1,152.06,17.23619988]
[1749296230880,12.20754844,152.11,152.06,17.23619988]
[1749296231077,10.65984844,152.1,152.06,17.23619988]
[1749296231581,10.65984844,152.1,152.06,6.57635144]
[1749296231770,10.65984844,152.1,152.06,17.23619988]
[1749296233264,6.82264045,152.1,152.06,6.82264045]
[1749296233689,6.82264045,152.1,152.05,6.57678395]
[1749296233894,6.82264045,152.1,152.05,13.3994244]
[1749296234391,6.82264045,152.09,152.05,6.57678395]
[1749296234797,6.82264045,152.08,152.05,6.57678395]
[1749296234960,8.12194593,152.11,152.04,6.57719267]
[1749296234961,6.82264045,152.06,152.04,6.57719267]
[1749296235159,14.58934593,152.11,152.02,23.02323768]
[1749296235373,6.82264045,152.08,152.03,6.82264045]
[1749296237195,10.66348241,152.08,152.04,6.57721652]
[1749296240387,8.0151,152.11,152.01,76.36]
[1749296240388,10.66348241,152.07,152.01,36.32]
[1749296240603,10.66348241,152.06,152.02,10.66348241]
[1749296240800,10.66348241,152.06,152.02,17.24156424]
[1749296241792,10.66348241,152.08,152.04,10.66348241]
[1749296242970,10.66348241,152.09,152.05,17.24026636]
[1749296243273,1.5477,152.11,152.06,10.66348241]
[1749296243475,1.5477,152.11,152.05,6.57678395]
[1749296243476,1.5477,152.11,152.07,10.66348241]
[1749296243886,12.21118241,152.11,152.07,10.66348241]
[1749296244791,10.32,152.14,152.08,10.66348241]
[1749296244980,10.32,152.14,152.09,6.57505424]
[1749296244981,10.66348241,152.13,152.09,6.57505424]
[1749296245767,10.66348241,152.13,152.09,17.23853665]
[1749296245973,10.66348241,152.14,152.09,17.23853665]
[1749296246179,10.66348241,152.14,152.1,10.66348241]
[1749296246374,26.97691492,152.16,152.09,23.01268985]
[1749296246585,10.66348241,152.15,152.1,10.66348241]
[1749296246797,10.66348241,152.14,152.1,10.66348241]
[1749296247265,17.23647041,152.14,152.1,10.66348241]
[1749296248307,10.66348241,152.14,152.1,10.66348241]
[1749296248482,10.66348241,152.14,152.09,17.23853665]
[1749296249177,10.66348241,152.14,152.09,6.57505424]
[1749296249374,17.23642918,152.14,152.09,17.23853665]
[1749296250093,10.66348241,152.13,152.09,17.23850732]
[1749296250283,10.66348241,152.13,152.08,43.23891048]
[1749296250486,10.66348241,152.12,152.08,32.57542807]
[1749296250782,10.66348241,152.12,152.08,43.23891048]
[1749296255997,10.66348241,152.11,152.08,26.0]
[1749296256200,10.66348241,152.1,152.06,27.55968559]
[1749296257185,10.66348241,152.11,152.06,27.55968559]
[1749296263730,10.66348241,152.11,152.07,10.66348241]
[1749296264600,10.66348241,152.11,152.07,17.23910023]
[1749296264804,10.66348241,152.11,152.07,6.57561782]
[1749296265019,10.66348241,152.11,152.07,17.23910023]
[1749296265625,10.66348241,152.12,152.07,17.23910023]
[1749296266331,10.66348241,152.12,152.08,10.66348241]
[1749296266551,10.66348241,152.12,152.08,17.23874707]
[1749296267114,10.66348241,152.12,152.08,6.57526466]
[1749296267706,10.66348241,152.11,152.08,6.57526466]
[1749296268132,10.66348241,152.11,152.07,17.23922999]
[1749296268734,10.66348241,152.11,152.07,6.57574758]
[1749296269040,10.66348241,152.11,152.06,17.23968095]
[1749296269221,10.66348241,152.1,152.06,17.23968095]
[1749296269430,10.66348241,152.1,152.06,6.57619854]
[1749296269835,10.66348241,152.09,152.05,6.57663607]
[1749296270030,10.66348241,152.08,152.05,6.57663607]
[1749296270216,10.66348241,152.08,152.04,16.87707777]
[1749296270532,18.64964886,152.11,152.04,16.87707777]
[1749296270741,10.66348241,152.08,152.04,16.87707777]
[1749296272026,10.66348241,152.07,152.04,16.87707777]
[1749296272720,10.66348241,152.07,152.04,6.57707777]
[1749296274227,10.66348241,152.05,152.02,6.57808183]
[1749296274839,10.66348241,152.04,152.02,6.57808183]
[1749296275912,10.66348241,152.04,152.01,10.3]
[1749296276120,10.66348241,152.03,152.01,10.3]
[1749296279045,10.66348241,152.04,152.01,10.3]
[1749296279435,10.66348241,152.04,152.01,16.87830107]
[1749296281139,10.66348241,152.05,152.01,27.54178348]
[1749296283145,10.66348241,152.05,152.01,16.87830107]
[1749296287448,10.66348241,152.05,152.01,27.54178348]
[1749296290227,10.66348241,152.07,152.02,10.66348241]
[1749296290854,10.66348241,152.06,152.02,10.66348241]
[1749296291350,10.66348241,152.06,152.03,6.57764914]
[1749296291521,10.66348241,152.05,152.02,6.57793248]
[1749296291721,10.66348241,152.04,152.01,10.3]
[1749296292652,10.66348241,152.04,152.01,16.87835318]
[1749296293029,10.66348241,152.03,151.98,76.70348241]
[1749296293371,10.66348241,152.01,151.97,61.00348241]
[1749296293527,10.66348241,152.01,151.97,6.5802461]
[1749296293943,10.66348241,152.01,151.97,17.24372851]
[1749296296739,10.66348241,152.02,151.98,10.66348241]
[1749296297059,10.66348241,152.02,151.99,6.57938022]
[1749296298955,10.66348241,152.03,151.99,17.24286263]
[1749296299533,1.6295,152.04,152.0,10.66348241]
[1749296300745,1.6295,152.04,152.01,6.57851457]
[1749296302335,12.29298241,152.04,152.01,6.57851457]
[1749296303337,1.6295,152.04,152.01,6.57851457]
[1749296303538,12.29298241,152.04,152.01,6.57851457]
[1749296303946,1.5812,152.1,152.03,10.66348241]
[1749296304235,10.66348241,152.07,152.03,10.66348241]
[1749296304650,10.66348241,152.07,152.03,6.57764914]
[1749296305239,10.66348241,152.07,152.03,17.24113155]
[1749296305459,52.80563704,152.1,152.03,17.24113155]
[1749296305765,10.66348241,152.08,152.03,17.24113155]
[1749296306942,10.66348241,152.08,152.04,10.66348241]
[1749296307346,52.80563704,152.1,152.04,10.66348241]
[1749296307347,27.5812,152.1,152.04,10.66348241]
[1749296307544,10.66348241,152.09,152.04,10.66348241]
[1749296307963,12.24468241,152.1,152.05,10.66348241]
[1749296308336,10.66348241,152.09,152.04,10.66348241]
[1749296308951,10.66348241,152.08,152.05,6.57678395]
[1749296310142,1.5812,152.1,152.05,6.57678395]
[1749296310543,12.24468241,152.1,152.05,6.57678395]
[1749296310743,10.66348241,152.09,152.05,6.57678395]
[1749296310959,10.66348241,152.09,152.05,17.24026636]
[1749296311342,10.66348241,152.09,152.05,6.57678395]
[1749296311756,10.66348241,152.08,152.05,6.57678395]
[1749296312160,10.66348241,152.08,152.04,6.57721652]
[1749296313176,10.66348241,152.08,152.04,17.24069893]
[1749296316379,10.66348241,152.07,152.03,17.24113155]
[1749296320488,10.66348241,152.06,152.03,6.57764914]
[1749296320857,10.66348241,152.05,152.02,10.3]
[1749296323468,10.66348241,152.05,152.02,16.87807082]
[1749296325590,10.66348241,152.06,152.02,27.54155323]
[1749296326182,10.66348241,152.07,152.02,27.54155323]
[1749296327886,10.66348241,152.06,152.02,27.54155323]
[1749296329185,10.66348241,152.06,152.02,17.24155323]
[1749296330085,10.66348241,152.07,152.02,17.24155323]
[1749296331277,6.82583945,152.07,152.02,6.82583945]
[1749296332294,6.82583945,152.07,152.03,6.82583945]
[1749296332491,6.82583945,152.07,152.04,6.57721652]
[1749296332700,6.82583945,152.08,152.04,6.57721652]
[1749296333790,6.82583945,152.08,152.04,13.40305597]
[1749296334600,6.82583945,152.07,152.04,6.57721652]
[1749296335491,6.82583945,152.07,152.03,6.5775307]
[1749296335796,6.82583945,152.06,152.03,6.5775307]
[1749296336579,6.82583945,152.06,152.01,6.82583945]
[1749296336786,6.82583945,152.05,152.01,6.57839464]
[1749296337187,10.66804523,152.05,152.01,6.57839464]
[1749296339895,6.57616706,152.07,152.01,6.57839464]
[1749296340216,10.66804523,152.05,152.01,6.57839464]
[1749296340416,10.66804523,152.05,152.01,17.24643987]
[1749296341027,6.57505424,152.09,152.02,10.66804523]
[1749296341311,10.66804523,152.07,152.03,10.66804523]
[1749296342289,10.66804523,152.07,152.01,23.02468106]
[1749296342500,10.66804523,152.07,152.04,6.57721652]
[1749296343614,10.66804523,152.07,152.03,17.24569437]
[1749296343805,10.66804523,152.08,152.03,17.24569437]
[1749296344401,80.36102431,152.1,152.03,17.24569437]
[1749296344597,10.66804523,152.08,152.03,17.24569437]
[1749296345720,10.66804523,152.08,152.01,23.02480099]
[1749296345897,10.66804523,152.07,152.03,10.66804523]
[1749296346313,10.66804523,152.07,152.02,10.66804523]
[1749296347011,10.66804523,152.08,152.04,6.57721652]
[1749296347602,10.66804523,152.07,152.04,6.57721652]
[1749296348421,10.66804523,152.08,152.04,6.57721652]
[1749296348619,80.36107629,152.1,152.04,6.57721652]
[1749296348799,10.66804523,152.08,152.04,6.57721652]
[1749296349320,10.66804523,152.08,152.04,17.24526175]
[1749296351629,10.66804523,152.08,152.04,6.57721652]
[1749296352939,10.66804523,152.09,152.05,10.66804523]
[1749296354737,12.24924523,152.1,152.07,6.57591898]
[1749296355647,12.24924523,152.1,152.06,6.57618643]
[1749296356343,1.5812,152.1,152.06,6.57618643]
[1749296356516,12.24924523,152.1,152.06,17.24423166]
[1749296356829,10.66804523,152.07,152.02,26.0]
[1749296357029,10.66804523,152.06,152.02,26.0]
[1749296357237,6.82750764,152.04,152.0,23.70632056]
[1749296358614,6.57619629,152.07,152.0,23.70632056]
[1749296358851,6.82750764,152.05,152.0,23.70632056]
[1749296359226,6.82750764,152.05,152.0,27.54674138]
[1749296359227,10.66792846,152.05,152.0,27.54674138]
[1749296360938,10.66792846,152.05,152.01,10.66792846]
[1749296361135,10.66792846,152.05,152.0,16.87881292]
[1749296361136,10.66792846,152.06,152.02,10.66792846]
[1749296361355,10.66792846,152.07,152.03,10.66792846]
[1749296361550,10.66792846,152.08,152.03,10.66792846]
[1749296363048,10.66792846,152.07,152.04,6.57721652]
[1749296366658,6.57509667,152.09,152.04,6.57721652]
[1749296366830,10.66792846,152.07,152.04,6.57721652]
[1749296367032,10.66792846,152.08,152.04,6.57721652]
[1749296367859,10.66792846,152.08,152.04,10.66792846]
[1749296368830,52.80554913,152.1,152.05,6.57678395]
[1749296369074,10.66792846,152.08,152.05,6.57678395]
[1749296371467,10.66792846,152.08,152.03,17.2455776]
[1749296373245,10.66792846,152.08,152.02,16.44488255]
[1749296373457,10.66792846,152.07,152.02,10.66792846]
[1749296373863,10.66792846,152.06,152.01,17.24644303]
[1749296374668,10.66792846,152.05,152.0,16.87880074]
[1749296374958,10.66792846,152.04,152.0,16.87880074]
[1749296375140,10.66792846,152.04,151.99,17.24721291]
[1749296375343,10.66792846,152.03,151.99,17.24721291]
[1749296376376,10.66792846,152.02,151.99,6.57928445]
[1749296376574,10.66792846,152.02,151.98,6.57981313]
[1749296379160,10.66792846,152.01,151.98,6.57981313]
[1749296379463,10.66792846,152.0,151.96,26.0]
[1749296379655,10.66792846,152.0,151.96,10.66792846]
[1749296379859,10.66792846,151.99,151.95,16.90096652]
[1749296380057,10.66792846,151.98,151.95,16.90096652]
[1749296380467,6.5421,152.03,151.95,16.90096652]
[1749296380468,10.66792846,151.99,151.95,16.90096652]
[1749296380654,10.66792846,151.99,151.95,27.56889498]
[1749296381058,10.66792846,151.98,151.95,6.58096652]
[1749296382070,10.66792846,151.98,151.94,6.58154534]
[1749296382276,10.66792846,151.98,151.94,17.2494738]
[1749296384153,10.66792846,151.98,151.93,6.58197854]
[1749296384373,10.66792846,151.98,151.93,17.249907]
[1749296385179,10.66792846,151.96,151.92,17.2501745]
[1749296385479,10.66792846,151.97,151.92,17.2501745]
[1749296386396,10.66792846,151.96,151.92,17.2501745]
[1749296386988,10.66792846,151.97,151.93,10.66792846]
[1749296387753,10.66792846,151.97,151.93,17.24979201]
[1749296392564,10.66792846,151.98,151.93,17.24979201]
[1749296392966,10.66792846,151.99,151.94,10.66792846]
[1749296393689,10.66792846,151.99,151.95,6.5811122]
[1749296394963,10.66792846,151.99,151.95,17.24904066]
[1749296400690,10.66792846,151.99,151.95,6.5811122]
[1749296403283,10.66792846,151.99,151.94,6.83300433]
[1749296403284,6.83300433,151.99,151.94,6.83300433]
[1749296404301,6.83300433,151.99,151.95,6.5811122]
[1749296406504,6.83300433,151.99,151.93,16.4549058]
[1749296406804,6.83300433,151.98,151.94,6.83300433]
[1749296407799,6.83300433,151.98,151.95,6.5811122]
[1749296409904,6.83300433,151.98,151.94,13.41443625]
[1749296410100,6.83300433,151.97,151.92,6.83300433]
[1749296410980,6.83300433,151.97,151.92,13.41523506]
[1749296412708,6.83300433,151.96,151.92,13.41523506]
[1749296414311,6.83300433,151.96,151.92,6.58223073]
[1749296414512,6.83300433,151.95,151.92,6.58223073]
[1749296415096,6.83300433,151.95,151.91,6.83300433]
[1749296415097,6.83300433,151.94,151.9,39.41610511]
[1749296415408,6.83300433,151.94,151.9,32.58310078]
[1749296415605,6.83300433,151.94,151.89,10.3]
[1749296415920,6.83300433,151.93,151.89,17.13300433]
[1749296417206,6.83300433,151.93,151.89,23.71656547]
[1749296417994,6.83300433,151.95,151.91,6.83300433]
[1749296418217,1.5235,151.96,151.92,6.83300433]
[1749296418604,6.83300433,151.94,151.9,6.58327847]
[1749296418915,6.83300433,151.94,151.9,13.4162828]
[1749296419245,1.5235,151.96,151.9,6.58327847]
[1749296419527,6.83300433,151.93,151.9,6.58327847]
[1749296419728,6.83300433,151.94,151.9,6.58327847]
[1749296420538,13.41459265,151.94,151.89,13.416612]
[1749296420734,6.83300433,151.93,151.88,39.4169892]
[1749296421039,6.83300433,151.93,151.89,6.83300433]
[1749296421216,6.83300433,151.93,151.87,10.3]
[1749296421217,6.83300433,151.92,151.87,10.3]
[1749296421533,6.83300433,151.93,151.88,6.83300433]
[1749296421734,6.83300433,151.93,151.87,16.88453098]
[1749296421941,6.83300433,151.93,151.88,6.83300433]
[1749296422944,6.83300433,151.93,151.89,6.83300433]
[1749296424117,6.83300433,151.94,151.9,6.58327847]
[1749296426845,6.5477,151.95,151.9,6.58327847]
[1749296426846,6.83300433,151.93,151.9,6.58327847]
[1749296427441,18.40435937,151.96,151.9,6.58327847]
[1749296427618,6.83300433,151.94,151.9,6.58327847]
[1749296429036,6.83300433,151.92,151.88,6.83300433]
[1749296429435,6.83300433,151.93,151.88,6.83300433]
[1749296430237,6.83300433,151.93,151.88,13.4171497]
[1749296430738,6.83300433,151.92,151.88,13.4171497]
[1749296430936,6.83300433,151.91,151.88,6.58414537]
[1749296431433,6.83300433,151.92,151.88,6.58414537]
[1749296435525,6.83300433,151.9,151.87,10.3]
[1749296435725,6.83300433,151.88,151.84,6.58587987]
[1749296435925,6.83300433,151.88,151.84,13.4188842]
[1749296436930,1.6106,151.91,151.83,10.3]
[1749296436931,6.83300433,151.87,151.83,10.3]
[1749296437244,6.83300433,151.87,151.83,16.886231]
[1749296437922,6.83300433,151.87,151.83,23.71923533]
[1749296439269,10.69318027,151.87,151.83,27.57941127]
[1749296440052,10.69318027,151.86,151.83,6.586231]
[1749296440250,10.69318027,151.86,151.82,10.69318027]
[1749296440251,10.69318027,151.86,151.82,6.58661374]
[1749296440451,10.69318027,151.86,151.82,17.27979401]
[1749296445651,10.69318027,151.86,151.82,6.58661374]
[1749296445833,10.69318027,151.86,151.82,17.27979401]
[1749296448531,10.69318027,151.87,151.82,17.27979401]
[1749296449471,10.69318027,151.87,151.84,0.08754268]
[1749296450156,10.69318027,151.86,151.84,0.08754268]
[1749296450855,10.69318027,151.87,151.84,0.08754268]
[1749296451736,10.69318027,151.87,151.84,6.67342255]
[1749296454539,10.69318027,151.88,151.84,6.67342255]
[1749296456138,10.69318027,151.88,151.84,0.08754268]
[1749296456462,10.69318027,151.87,151.84,0.08754268]
[1749296457256,10.69318027,151.87,151.84,6.67342255]
[1749296459267,6.84330244,151.87,151.84,6.67342255]
[1749296460461,6.84330244,151.88,151.84,6.67342255]
[1749296460958,6.84330244,151.89,151.84,13.51672499]
[1749296461334,1.6106,151.91,151.86,6.84330244]
[1749296461534,1.6106,151.91,151.87,6.84330244]